[Event "MČR v bleskovém šachu družstev 2019"]
[Site "Teplice, Czech Republic"]
[Date "2019.09.14"]
[Round "8.2"]
[White "Cernousek, Lukas"]
[Black "Polak, Tomas"]
[Result "0-1"]
[TimeControl "3 mim. + 2 s"]
[WhiteTitle "IM"]
[BlackTitle "GM"]
[WhiteFideId "311707"]
[BlackFideId "300560"]
[WhiteElo "2473"]
[BlackElo "2510"]

1. Nf3 {[%clk 00:03:03]} {[%emt 00:02:15]} Nf6 {[%clk 00:03:02]} {[%emt
00:00:02]} 2. e3 {[%clk 00:03:05]} b6 {[%clk 00:03:01]} {[%emt 00:00:04]} 3. c4
{[%clk 00:03:01]} {[%emt 00:00:05]} Bb7 {[%clk 00:03:02]} 4. d4 {[%clk
00:02:59]} {[%emt 00:00:05]} e6 {[%clk 00:03:02]} {[%emt 00:00:01]} 5. Bd3
{[%clk 00:03:00]} Be7 {[%clk 00:02:59]} {[%emt 00:00:05]} 6. O-O {[%emt
00:00:03]} c5 7. Nc3 {[%clk 00:02:52]} {[%emt 00:00:09]} cxd4 {[%clk 00:03:02]}
{[%emt 00:00:01]} 8. exd4 {[%clk 00:02:52]} {[%emt 00:00:02]} d5 {[%clk
00:03:02]} 9. cxd5 {[%clk 00:02:49]} {[%emt 00:00:06]} Nxd5 {[%clk 00:03:03]}
{[%emt 00:00:01]} 10. Ne5 {[%clk 00:02:48]} {[%emt 00:00:03]} O-O {[%clk
00:02:56]} {[%emt 00:00:09]} 11. Qg4 {[%clk 00:02:49]} {[%emt 00:00:01]} f5
{[%clk 00:02:27]} {[%emt 00:00:31]} 12. Qe2 {[%clk 00:02:39]} {[%emt 00:00:13]}
Bf6 {[%clk 00:02:23]} {[%emt 00:00:06]} 13. Bc4 {[%clk 00:02:19]} {[%emt
00:00:22]} Re8 {[%clk 00:02:16]} {[%emt 00:00:09]} 14. Re1 {[%clk 00:02:00]}
{[%emt 00:00:21]} Nc6 {[%clk 00:02:07]} {[%emt 00:00:10]} 15. Nxc6 {[%clk
00:00:52]} {[%emt 00:01:11]} Bxc6 {[%clk 00:02:08]} {[%emt 00:00:01]} 16. Be3
{[%clk 00:00:30]} {[%emt 00:00:24]} Qd6 {[%clk 00:01:58]} {[%emt 00:00:12]} 17.
Rad1 {[%clk 00:00:28]} {[%emt 00:00:04]} Rad8 {[%clk 00:01:57]} {[%emt
00:00:03]} 18. Bc1 {[%clk 00:00:15]} {[%emt 00:00:15]} h6 {[%clk 00:01:36]}
{[%emt 00:00:23]} 19. h3 {[%clk 00:00:14]} {[%emt 00:00:03]} Kh8 {[%clk
00:01:33]} {[%emt 00:00:04]} 20. Qh5 {[%clk 00:00:14]} {[%emt 00:00:03]} Kh7
{[%clk 00:01:24]} {[%emt 00:00:11]} 21. Rd3 {[%clk 00:00:13]} {[%emt 00:00:03]}
Re7 {[%clk 00:01:22]} {[%emt 00:00:04]} 22. Rg3 {[%clk 00:00:13]} {[%emt
00:00:02]} Be8 {[%clk 00:01:12]} {[%emt 00:00:12]} 23. Qf3 {[%clk 00:00:06]}
{[%emt 00:00:09]} Nb4 {[%clk 00:01:04]} {[%emt 00:00:10]} 24. a3 {[%clk
00:00:06]} {[%emt 00:00:03]} Nc2 {[%clk 00:01:03]} {[%emt 00:00:03]} 25. Rxe6
{[%clk 00:00:03]} {[%emt 00:00:04]} Nxd4 {[%clk 00:00:59]} {[%emt 00:00:06]} 26.
Rxd6 {[%clk 00:00:03]} {[%emt 00:00:02]} Nxf3+ {[%clk 00:00:59]} {[%emt
00:00:01]} 27. Rxf3 {[%clk 00:00:04]} {[%emt 00:00:01]} Rxd6 {[%emt 00:00:15]}
0-1

[Event "MČR v bleskovém šachu družstev 2019"]
[Site "Teplice, Czech Republic"]
[Date "2019.09.14"]
[Round "8.3"]
[White "Stocek, Jiri"]
[Black "Vrbata, Zbynek"]
[Result "1/2-1/2"]
[TimeControl "3 mim. + 2 s"]
[WhiteTitle "GM"]
[BlackTitle "FM"]
[WhiteFideId "304760"]
[BlackFideId "301256"]
[WhiteElo "2505"]
[BlackElo "2324"]

1. c4 {[%clk 00:03:03]} Nf6 {[%clk 00:03:02]} {[%emt 00:00:02]} 2. Nc3 {[%clk
00:03:04]} {[%emt 00:00:01]} g6 {[%clk 00:03:03]} {[%emt 00:00:01]} 3. d4
{[%clk 00:03:04]} {[%emt 00:00:02]} Bg7 {[%clk 00:03:04]} {[%emt 00:00:02]} 4.
e4 {[%clk 00:03:03]} {[%emt 00:00:02]} O-O {[%clk 00:03:04]} {[%emt 00:00:02]}
5. Nf3 {[%clk 00:02:55]} {[%emt 00:00:10]} d6 {[%clk 00:03:04]} {[%emt
00:00:01]} 6. Be2 {[%clk 00:02:55]} {[%emt 00:00:03]} Nbd7 {[%clk 00:03:04]}
{[%emt 00:00:01]} 7. e5 {[%clk 00:02:53]} {[%emt 00:00:04]} Ne8 {[%clk
00:03:02]} {[%emt 00:00:03]} 8. Bf4 {[%clk 00:02:51]} {[%emt 00:00:04]} c5
{[%clk 00:02:41]} {[%emt 00:00:23]} 9. dxc5 {[%clk 00:02:37]} {[%emt 00:00:17]}
Nxc5 {[%clk 00:02:35]} {[%emt 00:00:08]} 10. O-O {[%clk 00:02:33]} {[%emt
00:00:05]} Bg4 {[%clk 00:02:27]} {[%emt 00:00:11]} 11. exd6 {[%clk 00:02:23]}
{[%emt 00:00:13]} Nxd6 {[%clk 00:02:27]} {[%emt 00:00:01]} 12. Rc1 {[%clk
00:02:20]} {[%emt 00:00:05]} Rc8 {[%clk 00:02:20]} {[%emt 00:00:09]} 13. b3
{[%clk 00:02:06]} {[%emt 00:00:16]} Nf5 {[%clk 00:02:04]} {[%emt 00:00:18]} 14.
Ne5 {[%clk 00:01:37]} {[%emt 00:00:31]} Bxe2 {[%clk 00:02:03]} {[%emt
00:00:03]} 15. Qxe2 {[%clk 00:01:37]} {[%emt 00:00:02]} f6 {[%clk 00:01:46]}
{[%emt 00:00:18]} 16. Nf3 {[%clk 00:01:32]} {[%emt 00:00:07]} e5 {[%clk
00:01:46]} {[%emt 00:00:03]} 17. Rfd1 {[%emt 00:00:10]} Qe8 {[%clk 00:01:32]}
{[%emt 00:00:09]} 18. Be3 {[%clk 00:01:19]} {[%emt 00:00:13]} Nxe3 {[%clk
00:01:24]} {[%emt 00:00:11]} 19. Qxe3 {[%clk 00:01:20]} f5 {[%clk 00:01:22]}
{[%emt 00:00:04]} 20. Nb5 {[%clk 00:01:19]} {[%emt 00:00:03]} Qe7 {[%clk
00:01:16]} {[%emt 00:00:08]} 21. Nxa7 {[%clk 00:01:09]} {[%emt 00:00:12]} e4
{[%clk 00:01:15]} {[%emt 00:00:04]} 22. Nxc8 {[%clk 00:01:08]} {[%emt
00:00:03]} Rxc8 {[%clk 00:01:14]} {[%emt 00:00:03]} 23. Nd4 {[%clk 00:00:53]}
{[%emt 00:00:16]} Qf6 {[%clk 00:01:09]} {[%emt 00:00:07]} 24. Nb5 {[%clk
00:00:46]} {[%emt 00:00:09]} f4 {[%clk 00:01:05]} {[%emt 00:00:06]} 25. Qd4
{[%clk 00:00:35]} {[%emt 00:00:13]} Qxd4 {[%clk 00:00:53]} {[%emt 00:00:14]} 26.
Nxd4 {[%clk 00:00:36]} {[%emt 00:00:01]} Nd3 {[%clk 00:00:54]} 27. Ne6 {[%clk
00:00:34]} {[%emt 00:00:04]} Nxc1 {[%clk 00:00:53]} {[%emt 00:00:04]} 28. Rxc1
{[%clk 00:00:34]} {[%emt 00:00:02]} Be5 {[%clk 00:00:52]} {[%emt 00:00:03]} 29.
Rd1 {[%clk 00:00:34]} {[%emt 00:00:02]} Kf7 {[%clk 00:00:46]} {[%emt 00:00:08]}
30. Nd8+ {[%clk 00:00:33]} {[%emt 00:00:03]} Kf6 {[%clk 00:00:46]} {[%emt
00:00:02]} 31. Nxb7 {[%clk 00:00:32]} {[%emt 00:00:02]} e3 {[%clk 00:00:47]} 32.
Kf1 {[%clk 00:00:30]} {[%emt 00:00:04]} Ra8 {[%clk 00:00:46]} {[%emt 00:00:03]}
33. a4 {[%clk 00:00:29]} {[%emt 00:00:03]} Rb8 {[%clk 00:00:47]} 34. Nc5 {[%clk
00:00:30]} {[%emt 00:00:02]} Kf5 {[%clk 00:00:48]} {[%emt 00:00:02]} 35. fxe3
{[%clk 00:00:27]} {[%emt 00:00:05]} fxe3 {[%clk 00:00:49]} {[%emt 00:00:01]} 36.
Ke2 {[%clk 00:00:27]} {[%emt 00:00:02]} Bxh2 {[%clk 00:00:49]} {[%emt
00:00:02]} 37. Kxe3 {[%clk 00:00:25]} {[%emt 00:00:03]} Re8+ {[%clk 00:00:50]}
{[%emt 00:00:01]} 38. Kf3 {[%clk 00:00:25]} {[%emt 00:00:02]} g5 {[%clk
00:00:49]} {[%emt 00:00:03]} 39. g4+ {[%clk 00:00:26]} {[%emt 00:00:01]} Kf6
{[%clk 00:00:49]} {[%emt 00:00:02]} 40. Ne4+ {[%clk 00:00:26]} {[%emt
00:00:01]} Kg6 {[%clk 00:00:50]} {[%emt 00:00:02]} 41. c5 {[%clk 00:00:25]}
{[%emt 00:00:03]} Rf8+ {[%clk 00:00:51]} {[%emt 00:00:01]} 42. Kg2 {[%clk
00:00:26]} {[%emt 00:00:01]} Bb8 {[%clk 00:00:52]} {[%emt 00:00:01]} 43. b4
{[%clk 00:00:25]} {[%emt 00:00:03]} Rf4 {[%clk 00:00:53]} 44. Nf2 {[%clk
00:00:25]} {[%emt 00:00:01]} Rxb4 {[%clk 00:00:55]} {[%emt 00:00:01]} 45. a5
{[%clk 00:00:23]} {[%emt 00:00:05]} Rb5 {[%clk 00:00:56]} 46. Ra1 {[%clk
00:00:22]} {[%emt 00:00:03]} Rxc5 {[%clk 00:00:56]} {[%emt 00:00:02]} 47. a6
{[%emt 00:00:01]} Ba7 48. Ne4 {[%clk 00:00:22]} {[%emt 00:00:03]} Rc4 {[%clk
00:00:58]} {[%emt 00:00:02]} 49. Kf3 {[%clk 00:00:22]} {[%emt 00:00:02]} h5
{[%clk 00:00:57]} {[%emt 00:00:03]} 50. gxh5+ {[%clk 00:00:22]} {[%emt
00:00:02]} Kxh5 {[%clk 00:00:59]} 51. Nf6+ {[%clk 00:00:22]} {[%emt 00:00:02]}
Kg6 {[%clk 00:01:00]} {[%emt 00:00:01]} 52. Nd5 {[%clk 00:00:23]} {[%emt
00:00:01]} g4+ {[%clk 00:01:00]} {[%emt 00:00:02]} 53. Kg3 {[%clk 00:00:23]}
{[%emt 00:00:02]} Kf5 {[%clk 00:00:57]} {[%emt 00:00:06]} 54. Ra5 {[%clk
00:00:22]} {[%emt 00:00:03]} 1/2-1/2

[Event "MČR v bleskovém šachu družstev 2019"]
[Site "Teplice, Czech Republic"]
[Date "2019.09.14"]
[Round "8.4"]
[White "Kuba, Jindrich"]
[Black "Vymazal, Bronislav"]
[Result "1/2-1/2"]
[TimeControl "3 mim. + 2 s"]
[WhiteTitle "FM"]
[WhiteFideId "318248"]
[BlackFideId "318396"]
[WhiteElo "2223"]
[BlackElo "2309"]

1. e4 {[%clk 00:03:03]} b6 {[%clk 00:03:04]} 2. Nf3 {[%clk 00:03:03]} {[%emt
00:00:02]} Bb7 {[%clk 00:03:05]} 3. Nc3 {[%clk 00:03:00]} {[%emt 00:00:04]} e6
{[%clk 00:03:06]} {[%emt 00:00:03]} 4. d4 {[%clk 00:02:59]} {[%emt 00:00:03]}
Bb4 {[%clk 00:03:06]} {[%emt 00:00:01]} 5. Bd3 {[%clk 00:03:00]} {[%emt
00:00:01]} Nf6 {[%clk 00:03:07]} {[%emt 00:00:01]} 6. Qe2 {[%clk 00:02:59]}
{[%emt 00:00:04]} d5 {[%clk 00:03:08]} {[%emt 00:00:01]} 7. e5 {[%clk
00:02:58]} {[%emt 00:00:03]} Ne4 {[%clk 00:03:09]} 8. Bd2 {[%clk 00:02:56]}
{[%emt 00:00:04]} Nxd2 {[%clk 00:03:09]} {[%emt 00:00:02]} 9. Nxd2 {[%clk
00:02:56]} {[%emt 00:00:02]} c5 {[%clk 00:02:53]} {[%emt 00:00:17]} 10. Qg4
{[%clk 00:02:52]} {[%emt 00:00:06]} O-O {[%clk 00:02:45]} {[%emt 00:00:10]} 11.
a3 {[%clk 00:02:34]} {[%emt 00:00:20]} Ba5 {[%clk 00:02:16]} {[%emt 00:00:31]}
12. Nf3 {[%clk 00:02:06]} {[%emt 00:00:30]} h6 {[%clk 00:02:07]} {[%emt
00:00:12]} 13. O-O {[%clk 00:02:03]} {[%emt 00:00:05]} Nc6 {[%clk 00:01:55]}
{[%emt 00:00:13]} 14. Nb5 {[%clk 00:02:02]} {[%emt 00:00:03]} Ba6 {[%clk
00:01:41]} {[%emt 00:00:17]} 15. Nd6 {[%clk 00:01:28]} {[%emt 00:00:36]} Bxd3
{[%clk 00:01:40]} {[%emt 00:00:02]} 16. cxd3 {[%clk 00:01:29]} {[%emt
00:00:01]} f5 {[%clk 00:00:35]} {[%emt 00:01:07]} 17. Qg6 {[%clk 00:01:01]}
{[%emt 00:00:30]} Qd7 {[%clk 00:00:28]} {[%emt 00:00:09]} 18. Rac1 {[%clk
00:01:00]} {[%emt 00:00:04]} Rab8 {[%clk 00:00:11]} {[%emt 00:00:19]} 19. Rc2
{[%clk 00:00:41]} {[%emt 00:00:21]} Qe7 {[%clk 00:00:11]} {[%emt 00:00:02]} 20.
Rfc1 {[%clk 00:00:35]} {[%emt 00:00:08]} Rfd8 {[%clk 00:00:08]} {[%emt
00:00:04]} 21. b4 {[%clk 00:00:30]} {[%emt 00:00:08]} Nxb4 {[%clk 00:00:05]}
{[%emt 00:00:05]} 22. axb4 {[%clk 00:00:30]} {[%emt 00:00:01]} Bxb4 {[%clk
00:00:06]} {[%emt 00:00:01]} 23. dxc5 {[%clk 00:00:26]} {[%emt 00:00:06]} bxc5
{[%clk 00:00:08]} {[%emt 00:00:01]} 24. g3 {[%clk 00:00:19]} {[%emt 00:00:09]}
a5 {[%clk 00:00:09]} 25. Nh4 {[%clk 00:00:20]} {[%emt 00:00:01]} a4 {[%clk
00:00:10]} {[%emt 00:00:02]} 26. d4 {[%clk 00:00:21]} c4 {[%clk 00:00:10]}
{[%emt 00:00:01]} 27. Nxc4 {[%clk 00:00:16]} {[%emt 00:00:07]} dxc4 {[%clk
00:00:12]} 28. Rxc4 {[%clk 00:00:17]} {[%emt 00:00:01]} Bd2 {[%clk 00:00:13]}
29. Rc7 {[%clk 00:00:15]} {[%emt 00:00:03]} Rd7 {[%clk 00:00:14]} 30. Rxd7
{[%clk 00:00:15]} {[%emt 00:00:03]} Qxd7 {[%clk 00:00:15]} 31. Rd1 {[%clk
00:00:16]} {[%emt 00:00:01]} Bc3 {[%clk 00:00:17]} 32. Nf3 {[%clk 00:00:16]}
{[%emt 00:00:02]} a3 {[%clk 00:00:18]} 33. d5 {[%clk 00:00:18]} Re8 {[%clk
00:00:17]} {[%emt 00:00:03]} 34. dxe6 {[%clk 00:00:18]} {[%emt 00:00:02]} Qxe6
{[%clk 00:00:18]} {[%emt 00:00:01]} 35. Qxe6+ {[%clk 00:00:18]} {[%emt
00:00:02]} Rxe6 {[%clk 00:00:19]} 36. Rd8+ {[%clk 00:00:19]} Kh7 {[%clk
00:00:21]} 37. Ra8 {[%clk 00:00:20]} {[%emt 00:00:01]} Bb2 {[%clk 00:00:22]}
{[%emt 00:00:01]} 38. Nd2 {[%clk 00:00:20]} {[%emt 00:00:02]} Rxe5 {[%clk
00:00:22]} {[%emt 00:00:02]} 39. Nc4 {[%clk 00:00:21]} Rb5 {[%clk 00:00:22]}
{[%emt 00:00:01]} 40. Nxa3 {[%clk 00:00:22]} {[%emt 00:00:02]} Bxa3 {[%clk
00:00:23]} {[%emt 00:00:01]} 41. Rxa3 {[%clk 00:00:23]} {[%emt 00:00:01]} Rb1+
{[%clk 00:00:23]} {[%emt 00:00:01]} 1/2-1/2

[Event "MČR v bleskovém šachu družstev 2019"]
[Site "Teplice, Czech Republic"]
[Date "2019.09.14"]
[Round "8.5"]
[White "Liska, Jiri"]
[Black "Jirovsky, Milos"]
[Result "0-1"]
[TimeControl "3 mim. + 2 s"]
[WhiteTitle "FM"]
[BlackTitle "GM"]
[BlackFideId "303224"]
[WhiteElo "2241"]
[BlackElo "2499"]

1. Nf3 {[%clk 00:03:02]} {[%emt 00:00:02]} d5 {[%clk 00:03:04]} 2. d4 {[%clk
00:03:03]} Nf6 {[%clk 00:03:05]} {[%emt 00:00:02]} 3. c4 {[%clk 00:03:04]} e6
{[%clk 00:03:06]} 4. g3 {[%clk 00:03:04]} {[%emt 00:00:03]} dxc4 {[%clk
00:03:03]} {[%emt 00:00:05]} 5. Bg2 {[%clk 00:03:02]} {[%emt 00:00:04]} Nc6
{[%clk 00:03:04]} {[%emt 00:00:01]} 6. O-O {[%clk 00:02:55]} {[%emt 00:00:08]}
Rb8 {[%clk 00:03:06]} {[%emt 00:00:01]} 7. a4 {[%clk 00:02:40]} {[%emt
00:00:18]} a6 {[%clk 00:03:06]} 8. Bf4 {[%clk 00:02:31]} {[%emt 00:00:11]} Be7
{[%clk 00:02:37]} {[%emt 00:00:32]} 9. Qc2 {[%clk 00:02:06]} {[%emt 00:00:27]}
b5 {[%clk 00:02:33]} {[%emt 00:00:07]} 10. Rd1 {[%clk 00:01:54]} {[%emt
00:00:13]} Bb7 {[%clk 00:02:09]} {[%emt 00:00:26]} 11. Na3 {[%clk 00:01:34]}
{[%emt 00:00:21]} Nb4 {[%clk 00:02:02]} {[%emt 00:00:09]} 12. Qc1 {[%clk
00:01:33]} {[%emt 00:00:03]} Bd5 {[%clk 00:01:44]} {[%emt 00:00:20]} 13. b3
{[%clk 00:01:21]} {[%emt 00:00:13]} cxb3 {[%clk 00:01:18]} {[%emt 00:00:28]} 14.
Bxc7 {[%clk 00:01:20]} {[%emt 00:00:03]} b2 {[%clk 00:01:19]} {[%emt 00:00:01]}
15. Qf4 {[%clk 00:00:48]} {[%emt 00:00:33]} bxa1=Q {[%clk 00:01:03]} {[%emt
00:00:18]} 16. Rxa1 {[%clk 00:00:48]} {[%emt 00:00:02]} Qc8 {[%clk 00:00:59]}
{[%emt 00:00:07]} 17. Bxb8 {[%clk 00:00:46]} {[%emt 00:00:04]} O-O {[%clk
00:00:58]} {[%emt 00:00:03]} 18. Bd6 {[%clk 00:00:37]} {[%emt 00:00:10]} Nh5
{[%clk 00:00:56]} {[%emt 00:00:04]} 19. Qe5 {[%clk 00:00:37]} {[%emt 00:00:03]}
f6 {[%clk 00:00:56]} {[%emt 00:00:03]} 20. Qxh5 {[%clk 00:00:30]} {[%emt
00:00:09]} Bxd6 {[%clk 00:00:57]} {[%emt 00:00:01]} 21. axb5 {[%clk 00:00:29]}
{[%emt 00:00:03]} Qc3 {[%clk 00:00:56]} {[%emt 00:00:03]} 22. Re1 {[%clk
00:00:18]} {[%emt 00:00:12]} Bxf3 {[%clk 00:00:46]} {[%emt 00:00:12]} 23. Qxf3
{[%clk 00:00:17]} {[%emt 00:00:03]} Qxe1+ {[%clk 00:00:46]} {[%emt 00:00:02]}
0-1

[Event "MČR v bleskovém šachu družstev 2019"]
[Site "Teplice, Czech Republic"]
[Date "2019.09.14"]
[Round "8.6"]
[White "Sokolov, Alexander"]
[Black "Vltavsky, Vladimir"]
[Result "1-0"]
[TimeControl "3 mim. + 2 s"]
[WhiteTitle "FM"]
[WhiteFideId "4119177"]
[WhiteElo "2417"]
[BlackElo "2252"]

1. e4 {[%clk 00:03:02]} {[%emt 00:00:01]} e5 {[%clk 00:03:03]} {[%emt
00:00:02]} 2. f4 {[%clk 00:03:03]} exf4 {[%clk 00:03:02]} {[%emt 00:00:03]} 3.
Nf3 {[%clk 00:03:05]} d5 {[%clk 00:03:03]} {[%emt 00:00:01]} 4. exd5 {[%clk
00:03:05]} {[%emt 00:00:01]} Nf6 {[%clk 00:03:03]} {[%emt 00:00:01]} 5. Bc4
{[%clk 00:03:07]} Nxd5 {[%clk 00:03:02]} {[%emt 00:00:04]} 6. Qe2+ {[%clk
00:03:04]} {[%emt 00:00:05]} Be7 {[%clk 00:03:01]} {[%emt 00:00:03]} 7. O-O
{[%clk 00:03:03]} {[%emt 00:00:03]} O-O {[%clk 00:03:01]} {[%emt 00:00:02]} 8.
Bxd5 {[%clk 00:03:04]} {[%emt 00:00:01]} Qxd5 {[%clk 00:03:02]} {[%emt
00:00:01]} 9. Qxe7 {[%clk 00:03:05]} {[%emt 00:00:01]} Bg4 {[%clk 00:03:02]}
{[%emt 00:00:02]} 10. Nc3 {[%clk 00:03:03]} {[%emt 00:00:04]} Qh5 {[%clk
00:03:01]} {[%emt 00:00:03]} 11. Qxc7 {[%clk 00:02:57]} {[%emt 00:00:07]} Bxf3
{[%clk 00:03:00]} {[%emt 00:00:04]} 12. Rxf3 {[%clk 00:02:57]} {[%emt
00:00:02]} Nc6 {[%clk 00:03:01]} 13. Qxf4 {[%clk 00:02:55]} {[%emt 00:00:04]}
Rfe8 {[%clk 00:02:59]} {[%emt 00:00:04]} 14. Rf1 {[%clk 00:02:55]} {[%emt
00:00:03]} Re6 {[%clk 00:02:48]} {[%emt 00:00:13]} 15. d3 {[%clk 00:02:38]}
{[%emt 00:00:19]} Qc5+ {[%clk 00:02:48]} {[%emt 00:00:02]} 16. Qf2 {[%clk
00:02:35]} {[%emt 00:00:05]} Qh5 {[%clk 00:02:42]} {[%emt 00:00:08]} 17. Ne4
{[%clk 00:02:31]} {[%emt 00:00:06]} Ne5 {[%clk 00:02:38]} {[%emt 00:00:06]} 18.
Bf4 {[%clk 00:02:22]} {[%emt 00:00:11]} Ng4 {[%clk 00:02:38]} {[%emt 00:00:01]}
19. Qf3 {[%clk 00:02:16]} {[%emt 00:00:08]} f5 {[%clk 00:02:25]} {[%emt
00:00:15]} 20. Nc3 {[%clk 00:01:57]} {[%emt 00:00:20]} g5 {[%clk 00:02:16]}
{[%emt 00:00:11]} 21. Qd5 {[%clk 00:01:27]} {[%emt 00:00:33]} Rae8 {[%clk
00:02:17]} {[%emt 00:00:01]} 22. Bg3 {[%clk 00:01:21]} {[%emt 00:00:08]} Ne3
{[%clk 00:02:09]} {[%emt 00:00:09]} 23. Qf3 {[%clk 00:01:12]} {[%emt 00:00:11]}
g4 {[%clk 00:02:03]} {[%emt 00:00:08]} 24. Qf4 {[%clk 00:01:13]} {[%emt
00:00:01]} Nxf1 {[%clk 00:01:56]} {[%emt 00:00:09]} 25. Rxf1 {[%clk 00:01:14]}
{[%emt 00:00:01]} Rf8 {[%clk 00:01:52]} {[%emt 00:00:06]} 26. d4 {[%clk
00:01:14]} {[%emt 00:00:02]} Qe8 {[%clk 00:01:47]} {[%emt 00:00:07]} 27. d5
{[%clk 00:01:14]} {[%emt 00:00:02]} Rg6 {[%clk 00:01:26]} {[%emt 00:00:22]} 28.
d6 {[%clk 00:01:14]} {[%emt 00:00:02]} h5 {[%clk 00:01:26]} {[%emt 00:00:02]}
29. Nd5 {[%clk 00:01:13]} {[%emt 00:00:03]} Kh7 {[%clk 00:01:18]} {[%emt
00:00:10]} 30. Ne7 {[%clk 00:01:11]} {[%emt 00:00:04]} Rgf6 {[%clk 00:01:13]}
{[%emt 00:00:07]} 31. Qe5 {[%clk 00:00:57]} {[%emt 00:00:16]} Qf7 {[%clk
00:00:55]} {[%emt 00:00:19]} 32. Bf4 {[%clk 00:00:38]} {[%emt 00:00:22]} Re6
{[%clk 00:00:51]} {[%emt 00:00:06]} 33. Qb5 {[%clk 00:00:32]} {[%emt 00:00:08]}
h4 {[%clk 00:00:50]} {[%emt 00:00:02]} 34. Nd5 {[%clk 00:00:20]} {[%emt
00:00:14]} h3 {[%clk 00:00:49]} {[%emt 00:00:04]} 35. g3 {[%clk 00:00:19]}
{[%emt 00:00:04]} a6 {[%clk 00:00:43]} {[%emt 00:00:07]} 36. Qd3 {[%clk
00:00:19]} {[%emt 00:00:01]} Re4 {[%clk 00:00:43]} {[%emt 00:00:02]} 37. Nc3
{[%clk 00:00:20]} {[%emt 00:00:01]} Re6 {[%clk 00:00:39]} {[%emt 00:00:07]} 38.
Bg5 {[%clk 00:00:21]} {[%emt 00:00:02]} Kg6 {[%emt 00:00:04]} 39. d7 Rd8 {[%clk
00:00:35]} {[%emt 00:00:02]} 40. Bxd8 {[%clk 00:00:23]} {[%emt 00:00:01]} 1-0